Workbook

Sheet Лист1
A1: Школа | C1: МБОУ Верхне Арбашская средняя школа | F1: Утвердил: | G1: должность | H1: Директор школы
A2: Типовое примерное меню приготавливаемых блюд | G2: фамилия | H2: Исламов РИ
A3: Возрастная категория | E3: 7-11 лет | G3: дата | H3: 1 | I3: 9 | J3: 2023
H4: день | I4: месяц | J4: год
A5: Неделя | B5: День недели | C5: Прием пищи | D5: Раздел меню | E5: Блюда | F5: Вес блюда, г | G5: Белки | H5: Жиры | I5: Углеводы | J5: Калорийность | K5: № рецептуры | L5: Цена
A6: 1 | B6: 1 | C6: Завтрак | D6: 2 блюдо | E6: фрикадельки в соусе | F6: 55/50 | G6: 8.33 | H6: 7.743 | I6: 3.194 | J6: 175 | K6: 280/2015 | L6: 25.14
D7: гор.напиток | E7: чай с сахаром | F7: 200/15 | G7: 0.53 | H7: 0 | I7: 9.47 | J7: 40 | K7: 376/2015 | L7: 1.65
D8: хлеб бел. | E8: пшеничный | F8: 20 | G8: 1.52 | H8: 0.16 | I8: 9.8 | J8: 47.32 | L8: 1.1
D9: хлеб черн. | E9: ржано-пшеничный | F9: 20 | G9: 1 | H9: 0.2 | I9: 9 | J9: 44 | L9: 0.94
D10: фрукты
D11: гарнир | E11: каша вязкая (гречневая) | F11: 150 | G11: 6.662 | H11: 9.024 | I11: 34 | J11: 170 | K11: 303/2015 | L11: 7.57
D12: закуска | E12: салат из моркови с сахаром | F12: 60 | G12: 0.516 | H12: 2.132 | I12: 4.45 | J12: 50 | K12: 62/2015 | L12: 2.73
D13: итого | F13: 250 | G13: 18.558 | H13: 19.259 | I13: 69.914 | J13: 526.32 | L13: 39.13
A14: 1 | B14: 1 | C14: Завтрак 2 | D14: гор. блюдо | E14: каша молочная (пшенная) | F14: 150 | G14: 6.4 | H14: 6.7 | I14: 35.6 | J14: 228.3 | K14: 182/2015 | L14: 10.72
D15: гор.напиток | E15: компот из смеси сухофруктов | F15: 200 | G15: 0 | H15: 0 | I15: 14.6 | J15: 58.1 | K15: 349/2015 | L15: 3.45
D16: хлеб бел. | E16: пшеничный | F16: 40 | G16: 3.04 | H16: 0.32 | I16: 19.6 | J16: 94.6 | L16: 2.2
D17: итого | F17: 390 | G17: 9.44 | H17: 7.02 | I17: 69.8 | J17: 381 | L17: 16.37
A18: 1 | B18: 1 | C18: Обед | D18: закуска
D19: 1 блюдо
D20: 2 блюдо
D21: гарнир
D22: напиток
D23: хлеб бел.
D24: хлеб черн.
D27: итого | F27: 0 | G27: 0 | H27: 0 | I27: 0 | J27: 0 | L27: 0
A28: 1 | B28: 1 | C28: Полдник | D28: булочное | E28: Кондитерские изделия (печенье) | F28: 40 | G28: 2.9 | H28: 3.7 | I28: 28.8 | J28: 161.7 | K28: 2008 | L28: 3.6
D29: напиток | E29: кисель | F29: 200 | G29: 0 | H29: 0 | I29: 25.1 | J29: 221.7 | K29: 411/2015 | L29: 2.92
D32: итого | F32: 240 | G32: 2.9 | H32: 3.7 | I32: 53.9 | J32: 383.4 | L32: 6.52
A33: 1 | B33: 1 | C33: Ужин | D33: гор.блюдо
D34: гарнир
D35: напиток
D36: хлеб
D39: итого | F39: 0 | G39: 0 | H39: 0 | I39: 0 | J39: 0 | L39: 0
A40: 1 | B40: 1 | C40: Ужин 2 | D40: кисломол.
D41: булочное
D42: напиток
D43: фрукты
D46: итого | F46: 0 | G46: 0 | H46: 0 | I46: 0 | J46: 0 | L46: 0
A47: 1 | B47: 1 | C47: Итого за день: | F47: 880 | G47: 30.898 | H47: 29.979 | I47: 193.614 | J47: 1290.72 | L47: =SUM(L13,L17,L27,L32,L39,L46) -> 62.02
A48: 1 | B48: 2 | C48: Завтрак | D48: гор.блюдо | E48: рагу из птицы | F48: 50/150 | G48: 12.3 | H48: 17.66 | I48: 29.85 | J48: 313 | K48: 289/2015 | L48: 26.27
D49: гор.напиток | E49: какао с молоком | F49: 200 | G49: 3.78 | H49: 0.67 | I49: 26 | J49: 125 | K49: 382/2015 | L49: 10.12
D50: хлеб бел. | E50: пшеничный | F50: 20 | G50: 1.52 | H50: 0.16 | I50: 9.8 | J50: 47.32 | L50: 1.1
D51: хлеб черн. | E51: ржано-пшеничный | F51: 20 | G51: 1 | H51: 0.2 | I51: 9 | J51: 44 | L51: 0.94
D52: фрукты | E52: яблоки | F52: 132 | G52: 0.5 | H52: 0.5 | I52: 12.9 | J52: 62 | L52: 13.8
D53: закуска | E53: салат из белокочанной капусты | F53: 60 | G53: 0.78 | H53: 1.94 | I53: 3.87 | J53: 36 | K53: 345/2015 | L53: 3.28
D55: итого | F55: 432 | G55: 19.88 | H55: 21.13 | I55: 91.42 | J55: 627.32 | L55: 55.51
A56: 1 | B56: 2 | C56: Завтрак 2 | D56: гор.блюдо | E56: суп картофельный с геркулесом на мясо-костном бульоне | F56: 250 | G56: 4.5 | H56: 2.6 | I56: 15.2 | J56: 103 | K56: 98/2008 | L56: 10.41
D57: гор.напиток | E57: чай с сахаром | F57: 200/15 | G57: 0.53 | H57: 0 | I57: 9.47 | J57: 40 | K57: 376/2015 | L57: 1.65
D58: хлеб черн. | E58: ржано-пшеничный | F58: 40 | G58: 2 | H58: 0.4 | I58: 18 | J58: 88 | L58: 1.88
D59: итого | F59: 290 | G59: 7.03 | H59: 3 | I59: 42.67 | J59: 231 | L59: 13.94
A60: 1 | B60: 2 | C60: Обед | D60: закуска
D61: 1 блюдо
D62: 2 блюдо
D63: гарнир
D64: напиток
D65: хлеб бел.
D66: хлеб черн.
D69: итого | F69: 0 | G69: 0 | H69: 0 | I69: 0 | J69: 0 | L69: 0
A70: 1 | B70: 2 | C70: Полдник | D70: булочное | E70: Кондитерские изделия (пряники) | F70: 40 | G70: 2.4 | H70: 1.9 | I70: 30 | J70: 146.4 | K70: 2008 | L70: 4
D71: напиток | E71: компот из смеси сухофруктов | F71: 200 | G71: 0 | H71: 0 | I71: 14.6 | J71: 58.1 | K71: 349/2015 | L71: 4.25
D74: итого | F74: 240 | G74: 2.4 | H74: 1.9 | I74: 44.6 | J74: 204.5 | L74: 8.25
A75: 1 | B75: 2 | C75: Ужин | D75: гор.блюдо
D76: гарнир
D77: напиток
D78: хлеб
D81: итого | F81: 0 | G81: 0 | H81: 0 | I81: 0 | J81: 0 | L81: 0
A82: 1 | B82: 2 | C82: Ужин 2 | D82: кисломол.
D83: булочное
D84: напиток
D85: фрукты
D88: итого | F88: 0 | G88: 0 | H88: 0 | I88: 0 | J88: 0 | L88: 0
A89: 1 | B89: 2 | C89: Итого за день: | F89: 962 | G89: 29.31 | H89: 26.03 | I89: 178.69 | J89: 1062.82 | L89: =SUM(L88,L81,L74,L69,L59,L55) -> 77.7
A90: 1 | B90: 3 | C90: Завтрак | D90: гор.блюдо | E90: мясо тушеное | F90: 50/50 | G90: 10.5 | H90: 11.03 | I90: 3.184 | J90: 196 | K90: 256/2015 | L90: 41.98
D91: гор.напиток | E91: кофейный напиток с молоком | F91: 200 | G91: 3.6 | H91: 2.67 | I91: 29.2 | J91: 155 | K91: 379/2015 | L91: 10.95
D92: хлеб бел. | E92: пшеничный | F92: 20 | G92: 1.52 | H92: 0.16 | I92: 9.8 | J92: 47.32 | L92: 1.1
D93: хлеб черн. | E93: ржано-пшеничный | F93: 20 | G93: 1 | H93: 0.2 | I93: 9 | J93: 44 | L93: 0.94
D94: фрукты
D95: гарнир | E95: макаронные изделия отварные с маслом | F95: 150/5 | G95: 5.1 | H95: 4.468 | I95: 28.5 | J95: 187 | K95: 203/2015 | L95: 5.48
D96: закуска | E96: салат из свеклы отварной | F96: 60 | G96: 0.855 | H96: 3.653 | I96: 11.58 | J96: 56 | K96: 52/2015 | L96: 2.66
D97: итого | F97: 300 | G97: 22.575 | H97: 22.181 | I97: 91.264 | J97: 685.32 | L97: 63.11
A98: 1 | B98: 3 | C98: Завтрак 2 | D98: гор.блюдо | E98: каша рисовая молочная | F98: 150 | G98: 3.9 | H98: 5.8 | I98: 31.4 | J98: 193.9 | K98: 182/2015 | L98: 12.25
D99: гор.напиток | E99: чай с сахаром | F99: 200/15 | G99: 0.53 | H99: 0 | I99: 9.47 | J99: 40 | K99: 376/2015 | L99: 1.65
D100: хлеб черн. | E100: пшеничный | F100: 40 | G100: 3.04 | H100: 0.32 | I100: 19.6 | J100: 94.6 | L100: 2.2
D101: итого | F101: 190 | G101: 7.47 | H101: 6.12 | I101: 60.47 | J101: 328.5 | L101: 16.1
A102: 1 | B102: 3 | C102: Обед | D102: закуска
D103: 1 блюдо
D104: 2 блюдо
D105: гарнир
D106: напиток
D107: хлеб бел.
D108: хлеб черн.
D111: итого | F111: 0 | G111: 0 | H111: 0 | I111: 0 | J111: 0 | L111: 0
A112: 1 | B112: 3 | C112: Полдник | D112: булочное | E112: бутерброд с маслом | F112: 40/7 | G112: 3 | H112: 6 | I112: 19.6 | J112: 144.3 | K112: 2015-01-01 | L112: 6.15
D113: напиток | E113: чай с сахаром | F113: 200/15 | G113: 0.53 | H113: 0 | I113: 9.47 | J113: 40 | K113: 376/2015 | L113: 1.65
D116: итого | F116: 0 | G116: 3.53 | H116: 6 | I116: 29.07 | J116: 184.3 | L116: 7.8
A117: 1 | B117: 3 | C117: Ужин | D117: гор.блюдо
D118: гарнир
D119: напиток
D120: хлеб
D123: итого | F123: 0 | G123: 0 | H123: 0 | I123: 0 | J123: 0 | L123: 0
A124: 1 | B124: 3 | C124: Ужин 2 | D124: кисломол.
D125: булочное
D126: напиток
D127: фрукты
D130: итого | F130: 0 | G130: 0 | H130: 0 | I130: 0 | J130: 0 | L130: 0
A131: 1 | B131: 3 | C131: Итого за день: | F131: 490 | G131: 33.575 | H131: 34.301 | I131: 180.804 | J131: 1198.12 | L131: =SUM(L130,L123,L116,L111,L97,L101) -> 87.01
A132: 1 | B132: 4 | C132: Завтрак | D132: 2 блюдо | E132: котлеты рубленные из бройлер-цыплят | F132: 90 | G132: 11.52 | H132: 6.04 | I132: 21.78 | J132: 178.8 | K132: 295/2015 | L132: 21.54
D133: гор.напиток | E133: чай с сахаром | F133: 200/15 | G133: 0.53 | H133: 0 | I133: 9.47 | J133: 40 | K133: 376/2015 | L133: 1.65
D134: хлеб бел. | E134: пшеничный | F134: 20 | G134: 1.52 | H134: 0.16 | I134: 9.8 | J134: 47.32 | L134: 1.1
D135: хлеб черн. | E135: ржано-пшеничный | F135: 20 | G135: 1 | H135: 0.2 | I135: 9 | J135: 44 | L135: 0.94
D136: гарнир | E136: пюре картофельное | F136: 150 | G136: 3.09 | H136: 8.282 | I136: 22 | J136: 172 | K136: 312/2015 | L136: 10.68
D137: фрукты | E137: банан | F137: 108 | G137: 1.6 | H137: 0.5 | I137: 22.7 | J137: 103.7 | K137: 2008 | L137: 27
D138: закуска | E138: салат овощной с яблоками | F138: 60 | G138: 3.5 | H138: 6.11 | I138: 9.9 | J138: 124 | K138: 56/2015 | L138: 6.41
D139: итого | F139: 448 | G139: 22.76 | H139: 21.292 | I139: 104.65 | J139: 709.82 | L139: 69.32
A140: 1 | B140: 4 | C140: Завтрак 2 | D140: гор.блюдо | E140: каша вязкая (гречневая) | F140: 150 | G140: 6.662 | H140: 9.024 | I140: 34 | J140: 170 | K140: 303/2015 | L140: 7.57
D141: гор.напиток | E141: компот из смеси сухофруктов | F141: 200 | G141: 0 | H141: 0 | I141: 14.6 | J141: 58.1 | K141: 349/2015 | L141: 3.45
D142: хлеб черн. | E142: пшеничный | F142: 40 | G142: 3.04 | H142: 0.32 | I142: 19.6 | J142: 94.6 | L142: 2.2
D143: итого | F143: 390 | G143: 9.702 | H143: 9.344 | I143: 68.2 | J143: 322.7 | L143: 13.22
A144: 1 | B144: 4 | C144: Обед | D144: закуска
D145: 1 блюдо
D146: 2 блюдо
D147: гарнир
D148: напиток
D149: хлеб бел.
D150: хлеб черн.
D153: итого | F153: 0 | G153: 0 | H153: 0 | I153: 0 | J153: 0 | L153: 0
A154: 1 | B154: 4 | C154: Полдник | D154: булочное | E154: Кондитерские изделия (печенье) | F154: 40 | G154: 2.9 | H154: 3.7 | I154: 28.8 | J154: 161.7 | K154: 2008 | L154: 3.6
D155: напиток | E155: чай с сахаром | F155: 200/15 | G155: 0.53 | H155: 0 | I155: 9.47 | J155: 40 | K155: 376/2015 | L155: 1.65
D158: итого | F158: 40 | G158: 3.43 | H158: 3.7 | I158: 38.27 | J158: 201.7 | L158: 5.25
A159: 1 | B159: 4 | C159: Ужин | D159: гор.блюдо
D160: гарнир
D161: напиток
D162: хлеб
D165: итого | F165: 0 | G165: 0 | H165: 0 | I165: 0 | J165: 0 | L165: 0
A166: 1 | B166: 4 | C166: Ужин 2 | D166: кисломол.
D167: булочное
D168: напиток
D169: фрукты
D172: итого | F172: 0 | G172: 0 | H172: 0 | I172: 0 | J172: 0 | L172: 0
A173: 1 | B173: 4 | C173: Итого за день: | F173: 878 | G173: 35.892 | H173: 34.336 | I173: 211.12 | J173: 1234.22 | L173: =SUM(L172,L165,L158,L153,L143,L139) -> 87.79
A174: 1 | B174: 5 | C174: Завтрак | D174: 2 блюдо | E174: котлеты | F174: 90 | G174: 13.67 | H174: 13.671 | I174: 8.7 | J174: 209.6 | K174: 268/2015 | L174: 38.24
D175: гор.напиток | E175: чай с сахаром | F175: 200/15 | G175: 0.53 | H175: 0 | I175: 9.47 | J175: 40 | K175: 376/2015 | L175: 1.65
D176: хлеб бел. | E176: пшеничный | F176: 20 | G176: 1.52 | H176: 0.16 | I176: 9.8 | J176: 47.32 | L176: 1.1
D177: хлеб черн. | E177: ржано-пшеничный | F177: 20 | G177: 1 | H177: 0.2 | I177: 9 | J177: 44 | L177: 0.94
D178: фрукты
D179: гарнир | E179: рис отварной | F179: 150 | G179: 3.8 | H179: 8.6 | I179: 38.9 | J179: 247 | K179: 304/2015 | L179: 12.78
D180: закуска | E180: салат из моркови с сахаром | F180: 60 | G180: 0.516 | H180: 2.132 | I180: 4.45 | J180: 50 | K180: 62/2015 | L180: 2.73
D181: итого | F181: 340 | G181: 21.036 | H181: 24.763 | I181: 80.32 | J181: 637.92 | L181: 57.44
A182: 1 | B182: 5 | C182: Завтрак 2 | D182: гор.блюдо | E182: борщ с капустой и картофелем на мясо-костном бульоне | F182: 250 | G182: 4.3 | H182: 2 | I182: 13.3 | J182: 91 | K182: 2012 | L182: 13.9
D183: гор.напиток | E183: чай с сахаром | F183: 200/15 | G183: 0.53 | H183: 0 | I183: 9.47 | J183: 40 | K183: 376/2015 | L183: 1.65
D184: хлеб черн. | E184: ржано-пшеничный | F184: 40 | G184: 2 | H184: 0.4 | I184: 18 | J184: 88 | L184: 1.88
D185: итого | F185: 290 | G185: 6.83 | H185: 2.4 | I185: 40.77 | J185: 219 | L185: 17.43
A186: 1 | B186: 5 | C186: Обед | D186: закуска
D187: 1 блюдо
D188: 2 блюдо
D189: гарнир
D190: напиток
D191: хлеб бел.
D192: хлеб черн.
D195: итого | F195: 0 | G195: 0 | H195: 0 | I195: 0 | J195: 0 | L195: 0
A196: 1 | B196: 5 | C196: Полдник | D196: булочное | E196: кондитерские изделия (пряники) | F196: 40 | G196: 2.4 | H196: 1.9 | I196: 30 | J196: 146.4 | K196: 2008 | L196: 4
D197: напиток | E197: компот из смеси сухофруктов | F197: 200 | G197: 0 | H197: 0 | I197: 14.6 | J197: 58.1 | K197: 349/2015 | L197: 4.25
D200: итого | F200: 0 | G200: 2.4 | H200: 1.9 | I200: 44.6 | J200: 204.5 | L200: 8.25
A201: 1 | B201: 5 | C201: Ужин | D201: гор.блюдо
D202: гарнир
D203: напиток
D204: хлеб
D207: итого | F207: 0 | G207: 0 | H207: 0 | I207: 0 | J207: 0 | L207: 0
A208: 1 | B208: 5 | C208: Ужин 2 | D208: кисломол.
D209: булочное
D210: напиток
D211: фрукты
D214: итого | F214: 0 | G214: 0 | H214: 0 | I214: 0 | J214: 0 | L214: 0
A215: 1 | B215: 5 | C215: Итого за день: | F215: 630 | G215: 30.266 | H215: 29.063 | I215: 165.69 | J215: 1061.42 | L215: =SUM(L214,L207,L200,L195,L185,L181) -> 83.12
A216: 1 | B216: 6 | C216: Завтрак | D216: гор.блюдо | E216: пельмени мясные отварные | F216: 165/3 | G216: 9 | H216: 10.2 | I216: 18.15 | J216: 213 | K216: 392/2015 | L216: 49.9
D217: гор.напиток | E217: чай с лимоном | F217: 200/15/7 | G217: 0.084 | H217: 0.012 | I217: 15.185 | J217: 62 | K217: 377/2015 | L217: 3.09
D218: хлеб бел. | E218: пшеничный | F218: 30 | G218: 2.28 | H218: 0.24 | I218: 14.76 | J218: 71 | L218: 1.1
D219: хлеб черн. | E219: ржано-пшеничный | F219: 20 | G219: 1 | H219: 0.2 | I219: 9 | J219: 44 | L219: 1.41
D220: фрукты | E220: яблоки | F220: 132 | G220: 0.5 | H220: 0.5 | I220: 12.9 | J220: 62 | L220: 13.8
D221: закуска | E221: салат из белокочанной капусты | F221: 60 | G221: 0.78 | H221: 1.94 | I221: 3.87 | J221: 36 | K221: 45/2015 | L221: 3.28
D223: итого | F223: 0 | G223: 13.644 | H223: 13.092 | I223: 73.865 | J223: 488 | L223: 72.58
A224: 1 | B224: 6 | C224: Завтрак 2 | D224: гор.блюдо | E224: каша пшеничная | F224: 150 | G224: 5.1 | H224: 6 | I224: 27.5 | J224: 184 | K224: 189/2008 | L224: 9.76
D225: гор.напиток | E225: чай с сахаром | F225: 200/15 | G225: 0.53 | H225: 0 | I225: 9.47 | J225: 40 | K225: 376/2015 | L225: 1.65
D226: хлеб черн. | E226: пшеничный | F226: 40 | G226: 3.04 | H226: 0.32 | I226: 19.6 | J226: 94.6 | L226: 2.2
D227: итого | F227: 40 | G227: 8.67 | H227: 6.32 | I227: 56.57 | J227: 318.6 | L227: 13.61
A228: 1 | B228: 6 | C228: Обед | D228: закуска
D229: 1 блюдо
D230: 2 блюдо
D231: гарнир
D232: напиток
D233: хлеб бел.
D234: хлеб черн.
D237: итого | F237: 0 | G237: 0 | H237: 0 | I237: 0 | J237: 0 | L237: 0
A238: 1 | B238: 6 | C238: Полдник | D238: булочное
D239: напиток
D242: итого | F242: 0 | G242: 0 | H242: 0 | I242: 0 | J242: 0 | L242: 0
A243: 1 | B243: 6 | C243: Ужин | D243: гор.блюдо
D244: гарнир
D245: напиток
D246: хлеб
... 270 more rows
